{"text_format":"2","workbook":"xlsx","n_sheets":2,"sheets":["Contractors","Associates"],"not_rendered":{"charts":0,"images":0,"macros":0,"external_links":0,"defined_names":0,"comments":0,"pivot_tables":0},"unopened":[],"bounds":{"document_bytes":16777216,"sheet_cells":100000,"run_cost":"one","rows_first":2000,"rows_last":500,"rows_between":2000,"halvings":0,"cell_chars":16384,"cell_head_chars":4096},"cells_cut":0,"cells_raw":0,"read":"whole","date_system":"1900"}

{"sheet":"Contractors","index":0,"n_rows":68,"n_cols":9,"rows_kept":68,"cut":false,"hidden":false,"merged":[[52,1,52,4],[0,1,0,8],[1,1,1,8],[2,1,2,3],[3,1,3,3],[36,1,36,4],[4,1,4,4],[20,1,20,4]]}
[null,"Board Development Committee Prepared Nomination List "]
[null,"Goal - After two (2) contractors are elected per division, have a remaining seventeen (17) contractors to be considered for the eleven (11) Member-at-Large vote and six (6) board appointments. "]
[null,"Total Nominees",null,null,{"$f":"SUM(F6:F68)","v":28}]
[null,"M-at-L & Appointments Remaining",null,null,{"$f":"SUM(F6:F68)-8","v":20}]
[null,"Highway-Utility Division\nCarry-Over Toby Drake, Drake Construction, Inc.",{"$nulls":4},"Existing Board Member","Committee Participation","Current Highway-Utility Division Board Members"]
[null,1,"Chris","Duty","Hamilton Construction ",{"$f":"IF(ISTEXT(C6),1,0)","v":1},"Yes","Legislative Affairs Committee, CLC, DOT ","Aaron Bartel"]
[null,2,"Derek","Betts","Granite Construction Company",{"$f":"IF(ISTEXT(C7),1,0)","v":1},"Yes","Sporting Clays, AGC/DOT","Derek Betts"]
[null,3,"Kris","Jensen","Colaska Inc. ",{"$f":"IF(ISTEXT(C8),1,0)","v":1},"No","USACE and the education, training and WF Development ","Toby Drake"]
[null,4,"Travis","Malin","HC Contractors",{"$f":"IF(ISTEXT(C9),1,0)","v":1},"Yes","DOT Steering, Fairbanks Task Force, UAF Advisory, PAC, Labor Relations ","Chris Duty"]
[null,5,"Steve ","Rowe","Swalling General Contractors ",{"$f":"IF(ISTEXT(C10),1,0)","v":1},"Yes","Safety, external affairs, Sporting Clays, CIPF, participated in DOT workgroups","Matt Ketchum"]
[null,6,"John ","Szymik","Hamilton Construction Co. Alaska",{"$f":"IF(ISTEXT(C11),1,0)","v":1},"Yes",null,"Sarah Lefebvre/2023 Life Board Member"]
[null,7,"Matt","Ketchum","K&H Civil Constructors",1,"Yes","ETWD","Travis Malin"]
[null,8,"Aaron","Bartel","B. C. Excavating, LLC",1,"Yes","ETWD","John Szymik"]
[null,9,{"$nulls":6},"Steve Rowe"]
[null,10,null,null,null,0]
[null,11,null,null,null,0]
[null,12,null,null,null,0]
[null,13,null,null,null,0]
[null,14,null,null,null,0]
[null,15,null,null,null,{"$f":"IF(ISTEXT(C20),1,0)","v":0}]
[null,"Heavy-Industrial Division\nCarry-Over Brian Midyett, STG Pacific, LLC",{"$nulls":4},"Existing Board Member","Committee Participation","Current Heavy-Industrial Division Board Members"]
[null,1,"Jeff","Miller","Cruz Construction, Inc.",{"$f":"IF(ISTEXT(C22),1,0)","v":1},"Yes","DOT, Education Committee, AGC Labor Union Negotiation Team, Labor Union Trustee","Troy Gray"]
[null,2,"Troy","Gray","Knik Construction Co., Inc.",{"$f":"IF(ISTEXT(C23),1,0)","v":1},"Yes","DOT Steering Committee","Darrin Hansen"]
[null,3,"Marcus ","Trivette","Brice, Inc. ",{"$f":"IF(ISTEXT(C24),1,0)","v":1},"Yes","finance, eboard, DOT steering, Fairbanks task force, legal affairs","Brian Midyett"]
[null,4,"Darrin ","Hansen","Kiewit Infrastructure",{"$f":"IF(ISTEXT(#REF!),1,0)","v":0},"Yes","DOT Steering Committee, USACE Steering Committee","Jeff Miller"]
[null,5,"Brennan","Walsh","STG, Inc.",{"$f":"IF(ISTEXT(C25),1,0)","v":1},"Yes","ETWD","Marcus Trivette"]
[null,6,null,null,null,0,null,null,"Brennan Walsh"]
[null,7,null,null,null,0]
[null,8,null,null,null,0]
[null,9,null,null,null,0]
[null,10,null,null,null,0]
[null,11,null,null,null,0]
[null,12,null,null,null,0]
[null,13,null,null,null,0]
[null,14,null,null,null,0]
[null,15,null,null,null,0]
[null,"Building Division\nCarry-Over Saigen Harris, F & W Construction Co., Inc.",{"$nulls":4},"Existing Board Member","Committee Participation","Current Building Division Board Members"]
[null,1,"Matt","Chacho","GHEMM Company, LLC",{"$f":"IF(ISTEXT(C38),1,0)","v":1},"No","Fairbanks Task Force, Northern Carpenters Training Trust Member","Luke Blomfield"]
[null,2,"Sean ","Hickel","Roger Hickel Contracting, Inc.",{"$f":"IF(ISTEXT(C39),1,0)","v":1},"Yes","Editorial Board Committee","Robert Champion"]
[null,3,"Joe ","Jolley","Cornerstone General Contractors",1,"Yes","Legislative affairs","Saigen Harris"]
[null,4,"Luke","Blomfield","Davis Constructors & Engineers",1,"Yes","E-board, BDC, Labor negotiations, finance, membership, PAC","Sean Hickel"]
[null,5,null,null,null,0,null,null,"Joe Jolley"]
[null,6,null,null,null,0]
[null,7,null,null,null,0]
[null,8,null,null,null,0]
[null,9,null,null,null,0]
[null,10,null,null,null,0]
[null,11,null,null,null,0]
[null,12,null,null,null,0]
[null,13,null,null,null,0]
[null,14,null,null,null,0]
[null,15,null,null,null,0]
[null,"Specialty Division\nCarry-Over Regina Daniels, Davis Block & Concrete",{"$nulls":4},"Existing Board Member","Committee Participation","Current Specialty Division Board Members"]
[null,1,"Chrys","Fleming","Alcan Electrical & Engineering, Inc.",{"$f":"IF(ISTEXT(C54),1,0)","v":1},"yes","Board Development Committee","Mike Andersen"]
[null,2,"Mike T. ","Gould","Excel Construction Inc.",{"$f":"IF(ISTEXT(C55),1,0)","v":1},"Yes","ETWD, USACE Steering","Regina Daniels"]
[null,3,"Brennan","Walsh","STG Inc.",1,"Yes","Education, Workforce and Training","Chrys Fleming"]
[null,4,"Gary","Klebs","Klebs Mechanical Inc",1,"Yes","Membership","Mike T. Gould"]
[null,5,"Joshua","Coghill","Fullford Electric",1,"No","Fairbanks Task Force, Legislative","Carrie Jokiel"]
[null,6,"Kurt","Spencer","Alaska Demolition, LLC",1,"No",null,"Gary Klebs"]
[null,7,"Carrie","Jokiel","ChemTrack Alaska Inc.",1,"Yes","Finance, E-board, USACE Steering, Legal Affairs","Tyler Loken"]
[null,8,"Heather","Sottosanti","Big State Mechanical, LLC",1,"Yes","ETWD, CLC, Membership","Ron Pichler"]
[null,9,"Mike ","Andersen","DAMA Industrial, LLC",1,"Yes","Legislative Affairs","Cuauhtemoc Rodriguez/ 2023 Life Board Member"]
[null,10,"Ron","Pichler","Denali Drilling, Inc.",1,"Yes","Conference committee, Legislative affairs","Heather Sottosanti"]
[null,11,"Tyler","Loken","Loken Construction, LLC",1,"Yes","CLC"]
[null,12,"Jennifer","Schrage","Signature Land Services",{"$f":"IF(ISTEXT(C65),1,0)","v":1},"No","Legislative Affairs & ETWD"]
[null,13,null,null,null,0]
[null,14,null,null,null,0]
[null,15,null,null,null,0]

{"sheet":"Associates","index":1,"n_rows":23,"n_cols":9,"rows_kept":23,"cut":false,"hidden":false,"merged":[[22,1,22,5],[2,1,2,3],[3,1,3,3],[4,1,4,4],[0,1,0,8],[1,1,1,8]]}
[null,"Board Development Committee Prepared Nomination List "]
[null,"Goal - After six (6) associates are elected, have a remaining three (3) associates to be considered for board appointment. "]
[null,"Total Nominees",null,null,{"$f":"SUM(F3:F20)","v":12}]
[null,"Appointments Remaining",null,null,{"$f":"SUM(F4:F20)-6","v":6}]
[null,"Associates",{"$nulls":4},"Existing Board Member","Committee Participation","Current Associate Board Members"]
[null,1,"Lynne","Seville","Parker, Smith & Feek",{"$f":"IF(ISTEXT(C6),1,0)","v":1},"Yes","Legislative Affairs, Board Development Committee","Kirk Currey"]
[null,2,"Randy","Johnson","Spenard Builders Supply LLC",{"$f":"IF(ISTEXT(C7),1,0)","v":1},"No","Golf","Kirstie Gray"]
[null,3,"Scott","Vierra","North Star Equipment Services",1,"Yes","Co-Chair Membership, Board Development ","Dave Johnson"]
[null,4,"Kirk","Currey","CMI, LLC",1,"Yes","Legislative Affairs, Board Development Committee, golf, associates, membership, PAC","Traci Johnson"]
[null,5,"Aaron","Finney","Shoreside Petroleum, Inc. ",{"$f":"IF(ISTEXT(C10),1,0)","v":1},"No","ETWD, Clay shoot","Dax Lauwers"]
[null,6,"Dax","Lauwers","Marsh McLennan",{"$f":"IF(ISTEXT(C11),1,0)","v":1},"Yes","CLC, Contractors and Camo","Kiersten Russell"]
[null,7,"Kiersten","Russell","Northrim Bank",1,"Yes","Construction Leadership Council, Finance, Associates Council, Conference","Lynne Seville"]
[null,8,"Anne Marie","Tavella","Davis Wright Tremaine",1,"No","Legal Affairs ","Tamie Taylor"]
[null,9,"Jonathan","Storter","Meridian Management",1,"Yes",null,"Scott Vierra"]
[null,10,"Misty Dawn ","Crim","Misty Consulting",1,"No"]
[null,11,"Kirstie ","Gray","Gray Services",1,"Yes"]
[null,12,"Skeet","Black","PeopleAK",1,"No","Conference "]
[null,13,null,null,null,0]
[null,14,null,null,null,0]
[null,15,null,null,null,0]
[]
[null,"Note"]
[null,"On odd years (e.g. 2023) members vote for six (6) associates. One associate receives a 2-Year term on the Executive Board. On even years (e.g. 2022) members vote for five (5) associates as the Executive Board associate member serves the Carry-Over term. "]